fUSD/lending_fUSD_20250225
["ID","MTS","AMOUNT","RATE_DAILY","PERIOD"]
[354432580,1740491438417,-284.4,0.0003889,2]
[354432581,1740491438428,-26.48115078,0.0003889,2]
[354432582,1740491438438,-247.95884922,0.0003899,3]
[354432583,1740491438543,-880.607298,0.0003899,3]
[354432764,1740491440824,-310.88115069,0.00038902,2]
[354432765,1740491440833,-1050.09713668,0.0003899,3]
[354432830,1740491443674,-21258.80376561,0.00022439,2]
[354432831,1740491443684,-5401.91052461,0.0003899,3]
[354432832,1740491443694,-5100.0,0.0003899,34]
[354432833,1740491443703,-166.08176161,0.0003899,2]
[354432834,1740491443713,-165.67637545,0.00038995,2]
[354432835,1740491443726,-178.09536259,0.00038995,2]
[354432836,1740491443736,-7498.42391658,0.00038995,2]
[354432837,1740491443746,-493.52708199,0.00038996,2]
[354432838,1740491443756,-25450.5713,0.00038997,2]
[354432839,1740491443766,-500.0,0.00038999,15]
[354432840,1740491443776,-500.0,0.00038999,15]
[354432841,1740491443785,-500.0,0.00038999,15]
[354432842,1740491443795,-500.0,0.00038999,15]
[354432843,1740491443806,-500.0,0.00038999,15]
[354432844,1740491443816,-500.0,0.00038999,15]
[354432845,1740491443825,-500.0,0.00038999,15]
[354432846,1740491443834,-500.0,0.00038999,15]
[354432847,1740491443844,-269.46232555,0.00038999,15]
[354432848,1740491443853,-500.0,0.00038999,15]
[354432849,1740491443863,-500.0,0.00038999,15]
[354432850,1740491443872,-500.0,0.00038999,15]
[354432851,1740491443881,-550.0,0.00038999,15]
[354432852,1740491443890,-189.57498476,0.00038999,71]
[354432853,1740491443900,-18201.12535596,0.00038999,24]
[354432862,1740491445593,-102441.03843446,0.00038999,24]
[354432863,1740491446575,-310.88115069,0.00038913,2]
[354432864,1740491446585,-965.27250139,0.00038999,24]
[354432865,1740491446601,-465.1418772,0.00038999,24]
[354432866,1740491446627,-445.3875,0.00038999,24]
[354432973,1740492631793,-192.08,0.00026849,2]
[354432974,1740492631803,-234.76,0.00035724,2]
[354432975,1740492631812,-262.069653,0.00036016,2]
[354432976,1740492631823,-144.9055296,0.00037294,2]
[354432977,1740492635953,-5.0944704,0.00037294,2]
[354432978,1740492635963,-2088.0,0.00037466,117]
[354432979,1740492635973,-27518.01,0.00037534,2]
[354432980,1740492635982,-991.41923348,0.00037666,2]
[354432981,1740492635991,-259.36,0.00037668,2]
[354432982,1740492636001,-1472.63,0.00037718,2]
[354432983,1740492636011,-1500.0,0.00037786,2]
[354432984,1740492636020,-150.0,0.00037839,2]
[354432985,1740492636029,-250.0,0.00037865,2]
[354432986,1740492636038,-1213.0,0.000379,7]
[354432987,1740492636047,-671.371,0.00037958,50]
[354432988,1740492636057,-376.06,0.00037958,120]
[354432989,1740492636066,-150.0,0.00037966,2]
[354432990,1740492636075,-400.0,0.00037966,2]
[354432991,1740492636086,-23900.0,0.00037967,2]
[354432992,1740492636096,-1000.0,0.00037967,2]
[354432993,1740492636106,-234.76,0.00037988,2]
[354432994,1740492636117,-1472.63,0.00038016,2]
[354432995,1740492636126,-526.27,0.00038039,120]
[354432996,1740492636135,-1000.0,0.000382,7]
[354432997,1740492636144,-1216.95618445,0.00038309,2]
[354432998,1740492636154,-1472.63,0.00038314,2]
[354432999,1740492636164,-400.0,0.000384,14]
[354433000,1740492636173,-5000.0,0.000385,30]
[354433001,1740492636183,-900.0,0.000385,14]
[354433002,1740492636193,-1300.0,0.000386,14]
[354433003,1740492636202,-232.0,0.000386,2]
[354433004,1740492636211,-980.4,0.000386,2]
[354433005,1740492636221,-1472.63,0.00038612,2]
[354433006,1740492636231,-1800.0,0.000387,14]
[354433008,1740492636241,-382.863,0.00038767,10]
[354433010,1740492636250,-4715.687,0.0003879,2]
[354433011,1740492636259,-947.268,0.0003879,2]
[354433013,1740492636268,-2300.0,0.000388,14]
[354433015,1740492636278,-664.6481306,0.00038803,7]
[354433017,1740492636287,-151.0,0.00038867,2]
[354433020,1740492636305,-158.60769946,0.00038879,2]
[354433022,1740492636316,-1037.79272703,0.00038879,2]
[354433024,1740492636326,-292.70154448,0.00038889,11]
[354433026,1740492636336,-25450.5713,0.0003889,2]
[354433027,1740492636346,-3503.3271,0.0003889,2]
[354433028,1740492636355,-832.8601058,0.00038899,14]
[354433029,1740492636365,-832.86010578,0.000389,14]
[354433030,1740492636375,-20782.25373911,0.000389,2]
[354433031,1740492636384,-171.28771476,0.000389,12]
[354433032,1740492636394,-367.0,0.000389,2]
[354433033,1740492636404,-189.67733012,0.000389,12]
[354433034,1740492636413,-400.0,0.000389,14]
[354433035,1740492636423,-748.0,0.000389,2]
[354433036,1740492636433,-7498.42391658,0.000389,2]
[354433037,1740492636442,-832.86010578,0.000389,14]
[354433038,1740492636452,-165.67637545,0.000389,2]
[354433039,1740492636461,-4961.28319984,0.000389,2]
[354433041,1740492636471,-1472.63,0.00038909,2]
[354433042,1740492636480,-500.0,0.00038973,5]
[354433044,1740492636489,-160.89948135,0.00038973,2]
[354433046,1740492636499,-243.09994909,0.00038973,5]
[354433048,1740492636508,-160.57639644,0.00038973,5]
[354433049,1740492636518,-259.79471461,0.00038973,5]
[354433050,1740492636527,-500.0,0.00038977,2]
[354433051,1740492636536,-500.0,0.00038977,2]
[354433052,1740492636546,-1779.76,0.00038977,2]
[354433053,1740492636555,-1215.5,0.00038977,2]
[354433054,1740492636565,-500.0,0.00038977,2]
[354433055,1740492636575,-500.0,0.00038977,2]
[354433056,1740492636585,-500.0,0.00038977,2]
[354433057,1740492636594,-642.16,0.00038977,2]
[354433058,1740492636604,-500.0,0.00038977,2]
[354433059,1740492636614,-500.0,0.00038977,2]
[354433060,1740492636624,-500.0,0.00038977,2]
[354433061,1740492636633,-731.27,0.00038977,2]
[354433062,1740492636642,-500.0,0.00038977,2]
[354433063,1740492636652,-500.0,0.00038977,2]
[354433064,1740492636661,-97371.026343,0.00038978,3]
[354433065,1740492636672,-86135.9079188,0.00038979,3]
[354433066,1740492636682,-542.74461003,0.00038979,3]
[354433067,1740492636691,-500.0,0.00038979,2]
[354433068,1740492636700,-500.0,0.00038979,2]
[354433069,1740492636710,-500.0,0.00038979,2]
[354433070,1740492636719,-500.0,0.00038979,2]
[354433071,1740492636729,-500.0,0.00038979,2]
[354433072,1740492636738,-500.0,0.00038979,2]
[354433073,1740492636747,-500.0,0.00038979,2]
[354433074,1740492636756,-500.0,0.00038979,2]
[354433075,1740492636766,-500.0,0.00038979,2]
[354433076,1740492636775,-500.0,0.00038979,2]
[354433077,1740492636785,-500.0,0.00038979,2]
[354433078,1740492636796,-500.0,0.00038979,2]
[354433079,1740492636805,-500.0,0.00038979,2]
[354433080,1740492636814,-500.0,0.00038979,2]
[354433081,1740492636824,-500.0,0.00038979,2]
[354433082,1740492636834,-500.0,0.00038979,2]
[354433083,1740492636844,-4172.07,0.00038979,2]
[354433084,1740492636853,-1491.96,0.00038979,2]
[354433085,1740492636863,-580.99,0.00038979,2]
[354433086,1740492636873,-500.0,0.00038979,2]
[354433087,1740492636882,-500.0,0.00038979,2]
[354433088,1740492636891,-500.0,0.00038979,2]
[354433089,1740492636901,-3475.17,0.00038979,2]
[354433090,1740492636910,-542.74461003,0.00038979,3]
[354433091,1740492636919,-1628.23383009,0.0003898,3]
[354433092,1740492636930,-173.35091462,0.00038986,15]
[354433093,1740492636939,-500.55404404,0.00038986,15]
[354433094,1740492636948,-281.69060875,0.00038986,15]
[354433095,1740492636957,-500.0,0.00038987,2]
[354433096,1740492636967,-500.0,0.00038987,2]
[354433097,1740492636976,-500.0,0.00038987,2]
[354433098,1740492636985,-500.0,0.00038987,2]
[354433099,1740492636994,-500.0,0.00038987,2]
[354433100,1740492637004,-500.0,0.00038987,2]
[354433101,1740492637013,-500.0,0.00038987,2]
[354433102,1740492637022,-500.0,0.00038987,2]
[354433103,1740492637032,-500.0,0.00038987,2]
[354433104,1740492637041,-500.0,0.00038987,2]
[354433105,1740492637050,-500.0,0.00038987,2]
[354433106,1740492637060,-500.0,0.00038987,2]
[354433107,1740492637069,-500.0,0.00038987,2]
[354433108,1740492637079,-500.0,0.00038987,2]
[354433109,1740492637089,-1150.77,0.00038987,2]
[354433110,1740492637098,-500.0,0.00038987,2]
[354433111,1740492637112,-1644.75,0.00038987,2]
[354433112,1740492637121,-2069.99,0.00038987,2]
[354433113,1740492637131,-500.0,0.00038987,2]
[354433114,1740492637140,-500.0,0.00038987,2]
[354433115,1740492637151,-500.0,0.00038987,2]
[354433116,1740492637160,-525.12,0.00038987,2]
[354433117,1740492637170,-500.0,0.00038987,2]
[354433118,1740492637179,-500.0,0.00038987,2]
[354433119,1740492637190,-500.0,0.00038987,2]
[354433120,1740492637200,-500.0,0.00038987,2]
[354433121,1740492637209,-500.0,0.00038987,2]
[354433122,1740492637219,-500.0,0.00038987,2]
[354433123,1740492637229,-567.44,0.00038987,2]
[354433124,1740492637238,-1620.39,0.00038987,2]
[354433125,1740492637248,-500.0,0.00038987,2]
[354433126,1740492637257,-500.0,0.00038987,2]
[354433127,1740492637266,-500.0,0.00038987,2]
[354433128,1740492637275,-189.57498476,0.00038987,71]
[354433129,1740492637285,-81589.21102745,0.00038987,24]
[354433130,1740492637299,-454.92529219,0.00038987,24]
[354433131,1740492637322,-1000.0,0.00038987,24]
[354433132,1740492637333,-2057.3103758,0.00038987,24]
[354433133,1740492637707,-259.41608032,0.00038881,2]
[354433134,1740492637719,-778.37664669,0.00038881,2]
[354433135,1740492637729,-4509.46287339,0.00038987,24]
[354433136,1740492637748,-7255.2,0.00038987,24]
[354433137,1740492637760,-580.76664157,0.00038987,24]
[354433138,1740492637909,-1369.714304,0.00038987,24]
[354433253,1740492639784,-500.0,0.00038977,2]
[354433254,1740492639794,-300.6046,0.00038977,2]
[354433503,1740492642740,-1037.79272701,0.00038884,2]
[354433505,1740492642750,-603.4554,0.00038977,2]
[354433524,1740492642913,-500.0,0.00038979,2]
[354433526,1740492642932,-500.0,0.00038979,2]
[354433528,1740492642941,-351.27219035,0.00038987,2]
[354433532,1740492642962,-148.72780965,0.00038987,2]
[354433534,1740492642971,-49734.65681204,0.00038987,24]
[354433535,1740492642980,-500.0,0.00038988,2]
[354433537,1740492642989,-500.0,0.00038988,2]
[354433539,1740492642998,-502.07789325,0.00038988,2]
[354433541,1740492643007,-500.0,0.00038988,2]
[354433543,1740492643016,-502.92614776,0.00038988,2]
[354433545,1740492643025,-500.0,0.00038988,2]
[354433547,1740492643034,-501.4767912,0.00038988,2]
[354433549,1740492643043,-500.0,0.00038988,2]
[354433551,1740492643053,-500.0,0.00038988,2]
[354433553,1740492643062,-500.0,0.00038988,2]
[354433555,1740492643071,-500.0,0.00038988,2]
[354433557,1740492643080,-500.0,0.00038988,2]
[354433559,1740492643090,-500.0,0.00038988,2]
[354433561,1740492643099,-500.0,0.00038988,2]
[354433563,1740492643110,-500.0,0.00038988,2]
[354433565,1740492643121,-500.0,0.00038988,2]
[354433567,1740492643130,-500.0,0.00038988,2]
[354433569,1740492643140,-500.0,0.00038988,2]
[354433571,1740492643150,-500.0,0.00038988,2]
[354433573,1740492643162,-500.0,0.00038988,2]
[354433574,1740492643171,-371.97798323,0.00038988,2]
[354433576,1740492643181,-500.0,0.00038988,2]
[354433578,1740492643191,-500.0,0.00038988,2]
[354433580,1740492643201,-500.0,0.00038988,2]
[354433582,1740492643210,-500.0,0.00038988,2]
[354433584,1740492643220,-500.0,0.00038988,2]
[354433586,1740492643229,-500.0,0.00038988,2]
[354433588,1740492643238,-500.0,0.00038988,2]
[354433590,1740492643247,-500.0,0.00038988,2]
[354433592,1740492643256,-537.06924038,0.00038988,2]
[354433594,1740492643265,-500.0,0.00038988,2]
[354433596,1740492643276,-500.0,0.00038988,2]
[354433598,1740492643285,-500.0,0.00038988,2]
[354433600,1740492643295,-500.0,0.00038988,2]
[354433602,1740492643304,-500.0,0.00038988,2]
[354433604,1740492643314,-500.0,0.00038988,2]
[354433606,1740492643323,-500.0,0.00038988,2]
[354433608,1740492643333,-500.0,0.00038988,2]
[354433610,1740492643342,-644.99,0.00038988,2]
[354433612,1740492643351,-408.59,0.00038988,2]
[354433614,1740492643361,-500.0,0.00038988,2]
[354433616,1740492643370,-500.0,0.00038988,2]
[354433618,1740492643380,-500.36825461,0.00038988,2]
[354433620,1740492643389,-500.0,0.00038988,2]
[354433622,1740492643398,-500.0,0.00038988,2]
[354433624,1740492643407,-500.0,0.00038988,2]
[354433626,1740492643417,-500.0,0.00038988,2]
[354433628,1740492643426,-500.0,0.00038988,2]
[354433630,1740492643436,-500.0,0.00038988,2]
[354433632,1740492643446,-601.38,0.00038988,2]
[354433634,1740492643455,-500.0,0.00038988,2]
[354433636,1740492643465,-500.0,0.00038988,2]
[354433638,1740492643474,-500.0,0.00038988,2]
[354433640,1740492643483,-500.0,0.00038988,2]
[354433642,1740492643492,-500.0,0.00038988,2]
[354433644,1740492643502,-511.99,0.00038988,2]
[354433646,1740492643511,-649.36396058,0.00038988,2]
[354433648,1740492643520,-500.0,0.00038988,2]
[354433650,1740492643529,-315.98,0.00038988,2]
[354433652,1740492643538,-500.0,0.00038988,2]
[354433654,1740492643547,-500.0,0.00038988,2]
[354433655,1740492643557,-453.25,0.00038988,2]
[354433657,1740492643566,-500.0,0.00038988,2]
[354433659,1740492643576,-356.53,0.00038988,2]
[354433661,1740492643585,-500.0,0.00038988,2]
[354433664,1740492643594,-500.0,0.00038988,2]
[354433666,1740492643603,-500.0,0.00038988,2]
[354433668,1740492643613,-500.0,0.00038988,2]
[354433670,1740492643622,-500.0,0.00038988,2]
[354433672,1740492643631,-465.03725061,0.00038988,2]
[354433674,1740492643640,-374.87,0.00038988,2]
[354433676,1740492643649,-185.87,0.00038988,2]
[354433678,1740492643658,-500.0,0.00038988,2]
[354433680,1740492643667,-500.0,0.00038988,2]
[354433682,1740492643676,-500.0,0.00038988,2]
[354433684,1740492643686,-500.0,0.00038988,2]
[354433686,1740492643695,-593.15,0.00038988,2]
[354433688,1740492643704,-500.0,0.00038988,2]
[354433690,1740492643713,-295.88938349,0.00038988,2]
[354433692,1740492643726,-204.11061651,0.00038988,2]
[354433694,1740492643735,-500.0,0.00038988,2]
[354433696,1740492643745,-500.0,0.00038988,2]
[354433698,1740492643754,-500.0,0.00038988,2]
[354433700,1740492643763,-262.63916093,0.00038988,2]
[354433702,1740492643772,-500.0,0.00038988,2]
[354433705,1740492643786,-500.0,0.00038988,2]
[354433707,1740492643795,-500.0,0.00038988,2]
[354433709,1740492643805,-500.0,0.00038988,2]
[354433711,1740492643814,-500.0,0.00038988,2]
[354433713,1740492643823,-500.0,0.00038988,2]
[354433715,1740492643833,-500.0,0.00038988,2]
[354433717,1740492643842,-500.0,0.00038988,2]
[354433719,1740492643852,-500.0,0.00038988,2]
[354433721,1740492643861,-500.0,0.00038988,2]
[354433723,1740492643871,-500.0,0.00038988,2]
[354433725,1740492643880,-501.07621768,0.00038988,2]
[354433727,1740492643889,-500.0,0.00038988,2]
[354433729,1740492643898,-500.0,0.00038988,2]
[354433731,1740492643908,-568.96,0.00038988,120]
[354433733,1740492643917,-500.72907383,0.00038988,2]
[354433735,1740492643926,-500.0,0.00038988,2]
[354433737,1740492643936,-241.10319916,0.00038988,2]
[354433739,1740492643945,-500.0,0.00038988,2]
[354433741,1740492643954,-500.0,0.00038988,2]
[354433743,1740492643963,-500.0,0.00038988,2]
[354433745,1740492643972,-500.0,0.00038988,2]
[354433747,1740492643981,-500.0,0.00038988,2]
[354433749,1740492643990,-600.51,0.00038988,2]
[354433751,1740492644001,-500.0,0.00038988,2]
[354433752,1740492644010,-500.0,0.00038988,2]
[354433755,1740492644019,-400.82,0.00038988,2]
[354433756,1740492644029,-500.0,0.00038988,2]
[354433757,1740492644038,-500.0,0.00038988,2]
[354433758,1740492644047,-500.0,0.00038988,2]
[354433759,1740492644056,-500.0,0.00038988,2]
[354433760,1740492644066,-500.0,0.00038988,2]
[354433761,1740492644075,-500.0,0.00038988,2]
[354433762,1740492644084,-500.0,0.00038988,2]
[354433763,1740492644093,-500.0,0.00038988,2]
[354433764,1740492644103,-500.0,0.00038988,2]
[354433765,1740492644115,-500.0,0.00038988,2]
[354433766,1740492644125,-500.0,0.00038988,2]
[354433767,1740492644134,-500.0,0.00038988,2]
[354433769,1740492644143,-500.0,0.00038988,2]
[354433770,1740492644153,-500.0,0.00038988,2]
[354433772,1740492644163,-333.2447315,0.00038988,2]
[354433774,1740492644172,-500.0,0.00038988,2]
[354433776,1740492644181,-500.0,0.00038988,2]
[354433778,1740492644192,-500.0,0.00038988,2]
[354433780,1740492644201,-500.0,0.00038988,2]
[354433782,1740492644210,-500.0,0.00038988,2]
[354433784,1740492644219,-500.0,0.00038988,2]
[354433786,1740492644228,-500.0,0.00038988,2]
[354433788,1740492644237,-500.0,0.00038988,2]
[354433790,1740492644246,-500.0,0.00038988,2]
[354433792,1740492644255,-500.0,0.00038988,2]
[354433794,1740492644265,-500.0,0.00038988,2]
[354433796,1740492644274,-271.06785423,0.00038988,2]
[354433797,1740492644283,-500.0,0.00038988,2]
[354433799,1740492644292,-530.77,0.00038988,2]
[354433801,1740492644301,-514.96,0.00038988,2]
[354433803,1740492644311,-500.0,0.00038988,2]
[354433805,1740492644320,-500.0,0.00038988,2]
[354433807,1740492644329,-500.0,0.00038988,2]
[354433809,1740492644340,-500.0,0.00038988,2]
[354433811,1740492644349,-500.0,0.00038988,2]
[354433813,1740492644359,-500.0,0.00038988,2]
[354433815,1740492644368,-500.0,0.00038988,2]
[354433817,1740492644377,-557.78,0.00038988,2]
[354433819,1740492644387,-500.0,0.00038988,2]
[354433821,1740492644396,-500.0,0.00038988,2]
[354433823,1740492644406,-500.0,0.00038988,2]
[354433826,1740492644417,-500.0,0.00038988,2]
[354433827,1740492644427,-551.54,0.00038988,2]
[354433829,1740492644437,-500.0,0.00038988,2]
[354433832,1740492644446,-500.0,0.00038988,2]
[354433834,1740492644455,-519.86,0.00038988,2]
[354433835,1740492644465,-500.0,0.00038988,2]
[354433837,1740492644474,-3819.13,0.00038988,2]
[354433839,1740492644483,-498.4578406,0.00038988,2]
[354433841,1740492644491,-500.0,0.00038988,2]
[354433843,1740492644501,-500.0,0.00038988,2]
[354433845,1740492644510,-500.0,0.00038988,2]
[354433847,1740492644519,-500.0,0.00038988,2]
[354433849,1740492644528,-567.62,0.00038988,2]
[354433851,1740492644538,-500.0,0.00038988,2]
[354433853,1740492644547,-500.0,0.00038988,2]
[354433855,1740492644556,-500.0,0.00038988,2]
[354433857,1740492644565,-500.0,0.00038988,2]
[354433859,1740492644574,-511.98,0.00038988,2]
[354433861,1740492644584,-500.0,0.00038988,2]
[354433863,1740492644593,-500.0,0.00038988,2]
[354433865,1740492644602,-500.0,0.00038988,2]
[354433867,1740492644611,-500.0,0.00038988,2]
[354433869,1740492644621,-500.0,0.00038988,2]
[354433871,1740492644631,-582.66972645,0.00038988,2]
[354433873,1740492644643,-500.0,0.00038988,2]
[354433875,1740492644652,-500.0,0.00038988,2]
[354433877,1740492644661,-548.98766249,0.00038988,2]
[354433879,1740492644670,-584.09,0.00038988,2]
[354433881,1740492644680,-500.0,0.00038988,2]
[354433883,1740492644691,-500.0,0.00038988,2]
[354433885,1740492644700,-609.85,0.00038988,2]
[354433887,1740492644709,-500.0,0.00038988,2]
[354433889,1740492644718,-500.0,0.00038988,2]
[354433891,1740492644727,-500.0,0.00038988,2]
[354433893,1740492644736,-500.0,0.00038988,2]
[354433895,1740492644745,-500.0,0.00038988,2]
[354433897,1740492644754,-500.0,0.00038988,2]
[354433899,1740492644764,-500.0,0.00038988,2]
[354433901,1740492644773,-500.0,0.00038988,2]
[354433903,1740492644782,-500.0,0.00038988,2]
[354433905,1740492644792,-500.0,0.00038988,2]
[354433907,1740492644802,-645.23,0.00038988,2]
[354433909,1740492644811,-500.0,0.00038988,2]
[354433911,1740492644820,-500.0,0.00038988,2]
[354433913,1740492644829,-500.0,0.00038988,2]
[354433915,1740492644839,-500.0,0.00038988,2]
[354433917,1740492644848,-175.18487352,0.00038988,2]
[354433919,1740492644857,-500.0,0.00038988,2]
[354433920,1740492644866,-500.0,0.00038988,2]
[354433923,1740492644876,-500.0,0.00038988,2]
[354433924,1740492644885,-500.0,0.00038988,2]
[354433926,1740492644895,-500.0,0.00038988,2]
[354433928,1740492644904,-1901.59,0.00038988,2]
[354433930,1740492644913,-500.0,0.00038988,2]
[354433932,1740492644922,-500.0,0.00038988,2]
[354433934,1740492644931,-500.0,0.00038988,2]
[354433936,1740492644941,-500.0,0.00038988,2]
[354433938,1740492644950,-500.0,0.00038988,2]
[354433940,1740492644959,-500.0,0.00038988,2]
[354433942,1740492644969,-500.0,0.00038988,2]
[354433944,1740492644978,-500.0,0.00038988,2]
[354433946,1740492644987,-500.0,0.00038988,2]
[354433948,1740492644996,-500.0,0.00038988,2]
[354433950,1740492645005,-500.0,0.00038988,2]
[354433952,1740492645015,-500.0,0.00038988,2]
[354433954,1740492645025,-500.0,0.00038988,2]
[354433956,1740492645034,-500.0,0.00038988,2]
[354433958,1740492645044,-500.0,0.00038988,2]
[354433960,1740492645053,-500.0,0.00038988,2]
[354433961,1740492645062,-500.0,0.00038988,2]
[354433963,1740492645071,-500.0,0.00038988,2]
[354433965,1740492645081,-513.52677083,0.00038988,2]
[354433967,1740492645091,-500.0,0.00038988,2]
[354433969,1740492645100,-500.0,0.00038988,2]
[354433971,1740492645111,-500.0,0.00038988,2]
[354433973,1740492645121,-500.0,0.00038988,2]
[354433976,1740492645135,-500.0,0.00038988,2]
[354433978,1740492645145,-504.61818687,0.00038988,2]
[354433980,1740492645155,-500.0,0.00038988,2]
[354433982,1740492645165,-500.0,0.00038988,2]
[354433984,1740492645176,-500.0,0.00038988,2]
[354433986,1740492645186,-500.0,0.00038988,2]
[354433988,1740492645196,-500.0,0.00038988,2]
[354433990,1740492645204,-500.0,0.00038988,2]
[354433992,1740492645214,-500.0,0.00038988,2]
[354433994,1740492645223,-500.0,0.00038988,2]
[354433996,1740492645232,-500.0,0.00038988,2]
[354433998,1740492645242,-500.0,0.00038988,2]
[354434000,1740492645251,-500.0,0.00038988,2]
[354434001,1740492645260,-500.0,0.00038988,2]
[354434003,1740492645269,-500.0,0.00038988,2]
[354434005,1740492645279,-500.0,0.00038988,2]
[354434007,1740492645287,-500.0,0.00038988,2]
[354434009,1740492645297,-1000.0,0.00038988,2]
[354434011,1740492645306,-500.0,0.00038988,2]
[354434013,1740492645315,-500.0,0.00038988,2]
[354434015,1740492645324,-349.8841981,0.00038988,2]
[354434017,1740492645334,-500.0,0.00038988,2]
[354434019,1740492645344,-500.0,0.00038988,2]
[354434021,1740492645353,-500.0,0.00038988,2]
[354434023,1740492645362,-500.0,0.00038988,2]
[354434025,1740492645372,-500.0,0.00038988,2]
[354434027,1740492645381,-500.0,0.00038988,2]
[354434029,1740492645390,-1561.86,0.00038988,2]
[354434031,1740492645400,-580.12,0.00038988,2]
[354434033,1740492645409,-500.0,0.00038988,2]
[354434035,1740492645419,-500.0,0.00038988,2]
[354434037,1740492645428,-500.0,0.00038988,2]
[354434039,1740492645437,-500.0,0.00038988,2]
[354434041,1740492645448,-500.0,0.00038988,2]
[354434043,1740492645457,-846.91,0.00038988,2]
[354434045,1740492645467,-500.0,0.00038988,2]
[354434047,1740492645476,-629.59,0.00038988,2]
[354434049,1740492645486,-433.89019953,0.00038988,2]
[354434051,1740492645495,-500.0,0.00038988,2]
[354434053,1740492645504,-504.32680062,0.00038988,2]
[354434055,1740492645513,-500.0,0.00038988,2]
[354434057,1740492645523,-1085.48922006,0.00038989,3]
[354434059,1740492645532,-500.0,0.00038989,2]
[354434061,1740492645541,-500.0,0.00038989,2]
[354434063,1740492645550,-500.0,0.00038989,2]
[354434064,1740492645558,-500.0,0.00038989,2]
[354434066,1740492645567,-500.0,0.00038989,2]
[354434068,1740492645577,-500.0,0.00038989,2]
[354434070,1740492645586,-500.0,0.00038989,2]
[354434071,1740492645595,-500.0,0.00038989,2]
[354434074,1740492645604,-1911.38,0.00038989,2]
[354434077,1740492645614,-500.0,0.00038989,2]
[354434079,1740492645623,-500.0,0.00038989,2]
[354434080,1740492645632,-500.0,0.00038989,2]
[354434081,1740492645642,-828.48,0.00038989,2]
[354434082,1740492645652,-500.0,0.00038989,2]
[354434083,1740492645661,-500.0,0.00038989,2]
[354434084,1740492645671,-500.0,0.00038989,2]
[354434085,1740492645680,-500.0,0.00038989,2]
[354434086,1740492645690,-500.0,0.00038989,2]
[354434087,1740492645699,-500.0,0.00038989,2]
[354434088,1740492645708,-500.0,0.00038989,2]
[354434095,1740492645846,-500.0,0.00038989,2]
[354434097,1740492645856,-500.0,0.00038989,2]
[354434099,1740492645866,-500.0,0.00038989,2]
[354434101,1740492645876,-500.0,0.00038989,2]
[354434103,1740492645885,-500.0,0.00038989,2]
[354434105,1740492645895,-500.0,0.00038989,2]
[354434107,1740492645904,-1011.38,0.00038989,2]
[354434109,1740492645914,-500.0,0.00038989,2]
[354434111,1740492645923,-500.0,0.00038989,2]
[354434113,1740492645932,-500.0,0.00038989,2]
[354434115,1740492645942,-500.0,0.00038989,2]
[354434117,1740492645952,-506.24,0.00038989,2]
[354434119,1740492645961,-2086.42,0.00038989,2]
[354434121,1740492645970,-500.0,0.00038989,2]